bitfinex-derivatives/quotes_ETHF0:USTF0_20250520
["timestamp","ask_amount","ask_price","bid_price","bid_amount"]
[1747752981840,1.00368774,2475.6,2475.5,0.80767]
[1747752982031,1.00368774,2475.6,2475.5,1.09333159]
[1747752982240,1.00368774,2475.6,2475.5,3.11308659]
[1747752982434,1.00368774,2475.6,2475.5,5.30908659]
[1747752982645,1.00368774,2475.6,2475.5,4.50141659]
[1747752982646,1.81132774,2475.6,2475.5,4.50141659]
[1747752982846,1.81132774,2475.6,2475.5,11.08966159]
[1747752983346,3.17372774,2475.6,2475.5,11.21608354]
[1747752983647,3.17372774,2475.6,2475.5,11.75561948]
[1747752984238,3.17372774,2475.6,2475.5,9.55961948]
[1747752984437,4.05942774,2475.6,2475.5,9.55961948]
[1747752984943,4.05942774,2475.6,2475.5,0.95161948]
[1747752985347,4.05942774,2475.6,2475.5,0.7352431]
[1747752985547,3.05574,2475.6,2475.5,0.7352431]
[1747752986146,5.79574,2475.6,2475.5,0.7352431]
[1747752986649,5.79574,2475.6,2475.5,0.73507112]
[1747752987145,3.05574,2475.6,2475.5,0.73507112]
[1747752987748,1.69334,2475.6,2475.5,0.73507112]
[1747752988143,1.69334,2475.6,2475.5,2.13233249]
[1747752988641,3.07404,2475.6,2475.5,2.13233249]
[1747752988838,3.07404,2475.6,2475.5,0.73583249]
[1747752989237,5.81404,2475.6,2475.5,0.73583249]
[1747752989649,7.95404,2475.6,2475.5,0.73583249]
[1747752990042,5.81404,2475.6,2475.5,0.41267293]
[1747752990241,8.17404,2475.6,2475.5,0.41267293]
[1747752990443,5.81404,2475.6,2475.5,0.41267293]
[1747752990648,7.85404,2475.6,2475.5,0.41267293]
[1747752990843,5.81404,2475.6,2475.5,0.41267293]
[1747752991748,5.81404,2475.6,2475.5,0.41271884]
[1747752993051,6.23404,2475.6,2475.5,0.41271884]
[1747752993452,6.23404,2475.6,2475.5,0.12622252]
[1747752994355,7.23772774,2475.6,2475.5,0.12622252]
[1747752994555,7.36649258,2475.6,2475.5,0.41276792]
[1747752995154,7.36649258,2475.6,2475.5,0.41276687]
[1747752996852,7.36649258,2475.6,2475.5,0.41285299]
[1747752998057,6.36280484,2475.6,2475.5,0.41285299]
[1747752998451,6.36280484,2475.6,2475.5,0.73602367]
[1747752999457,3.62280484,2475.6,2475.5,0.73602367]
[1747752999755,3.62280484,2475.6,2475.5,0.7362677]
[1747753000348,3.62280484,2475.6,2475.5,0.73625854]
[1747753001156,6.36280484,2475.6,2475.5,0.73625854]
[1747753002054,6.36280484,2475.6,2475.5,0.41311947]
[1747753003853,6.36280484,2475.6,2475.5,0.41313345]
[1747753004053,0.80774,2475.3,2475.2,0.21637638]
[1747753004258,9.93554,2475.3,2475.2,0.21637638]
[1747753004854,3.54774,2475.3,2475.2,1.55687638]
[1747753005159,0.80774,2475.3,2475.2,3.57687638]
[1747753005956,0.80774,2475.3,2475.2,5.25134638]
[1747753005957,1.9433665,2475.3,2475.2,5.25134638]
[1747753006156,1.9433665,2475.3,2475.2,4.44357638]
[1747753006358,1.9433665,2475.3,2475.2,4.76674101]
[1747753007857,1.9433665,2475.3,2475.2,4.55036463]
[1747753008064,1.9433665,2475.3,2475.2,4.83894721]
[1747753008362,4.0533665,2475.3,2475.2,0.61174721]
[1747753008554,4.0133665,2475.3,2475.2,0.61174721]
[1747753008756,5.1511665,2475.3,2475.2,0.61174721]
[1747753008951,7.4111665,2475.3,2475.2,0.61174721]
[1747753009257,10.1511665,2475.3,2475.2,0.61174721]
[1747753009563,9.14430484,2475.3,2475.2,0.61174721]
[1747753009954,10.43600484,2475.3,2475.2,0.32316463]
[1747753012254,0.8078,2475.1,2475.0,3.67e-06]
[1747753012457,11.9728,2475.1,2475.0,3.67e-06]
[1747753012656,22.4728,2475.1,2475.0,3.67e-06]
[1747753012852,24.74,2475.1,2475.0,3.67e-06]
[1747753013261,27.48,2475.1,2475.0,3.67e-06]
[1747753013763,16.98,2475.1,2475.0,3.67e-06]
[1747753013959,0.80787,2474.9,2474.8,1.36986907]
[1747753014264,5.39567,2474.9,2474.8,1.36986907]
[1747753014666,5.39567,2474.9,2474.8,0.00606907]
[1747753015163,8.26443484,2474.9,2474.8,0.00606907]
[1747753015564,9.59373484,2474.9,2474.8,0.00606907]
[1747753016158,5.05663484,2474.9,2474.8,2.02639407]
[1747753016364,3.67663484,2474.9,2474.8,2.02639407]
[1747753016564,3.67663484,2474.9,2474.8,10.73764844]
[1747753016869,2.86876484,2474.9,2474.8,16.54554844]
[1747753017164,0.12876484,2474.9,2474.8,18.70984844]
[1747753017355,0.93663484,2474.9,2474.8,18.70984844]
[1747753017561,0.12876484,2474.9,2474.8,18.70984844]
[1747753017761,0.93663484,2474.9,2474.8,18.70984844]
[1747753017966,0.80787,2474.9,2474.8,12.90194844]
[1747753018167,0.80787,2474.9,2474.8,4.31694844]
[1747753018366,0.80787,2474.9,2474.8,12.90194844]
[1747753018768,0.80787,2474.9,2474.8,4.31694844]
[1747753019066,0.80787,2474.9,2474.8,12.90194844]
[1747753019463,0.80787,2474.9,2474.8,1.40932344]
[1747753019859,2.99917,2474.9,2474.8,1.40932344]
[1747753020164,2.99917,2474.9,2474.8,0.13232344]
[1747753020364,2.99917,2474.9,2474.8,3.44e-06]
[1747753020365,11.30917,2474.9,2474.8,3.44e-06]
[1747753021556,9.11787,2474.9,2474.8,7.02032844]
[1747753021761,4.55419745,2474.9,2474.8,20.55052844]
[1747753021968,3.74632745,2474.9,2474.8,20.55052844]
[1747753022162,1.00632745,2474.9,2474.8,20.55052844]
[1747753022565,1.81419745,2474.9,2474.8,20.55052844]
[1747753022872,1.00632745,2474.9,2474.8,20.55052844]
[1747753023168,1.32942953,2474.9,2474.8,20.55052844]
[1747753023469,1.32942953,2474.9,2474.8,21.86642844]
[1747753023874,1.32942953,2474.9,2474.8,13.28142844]
[1747753024059,1.32942953,2474.9,2474.8,21.05852844]
[1747753024373,1.32942953,2474.9,2474.8,16.05852844]
[1747753024669,1.32942953,2474.9,2474.8,16.86642844]
[1747753024967,0.52155953,2474.9,2474.8,22.18962085]
[1747753025267,0.52155953,2474.9,2474.8,24.92962085]
[1747753025572,0.81388907,2475.1,2475.0,0.80784]
[1747753025966,0.81388907,2475.1,2475.0,2.82799999]
[1747753026166,0.81388907,2475.1,2475.0,4.09919999]
[1747753026373,0.81388907,2475.1,2475.0,4.71071961]
[1747753027478,0.81388907,2475.1,2475.0,3.90287961]
[1747753027868,0.81388907,2475.1,2475.0,3.6145524]
[1747753030377,0.81388907,2475.1,2475.0,4.4223924]
[1747753030676,0.00606907,2475.1,2475.0,12.9823924]
[1747753031477,0.00606907,2475.1,2475.0,13.27071961]
[1747753032074,0.81386907,2475.1,2475.0,13.27071961]
[1747753032568,0.81386907,2475.1,2475.0,13.39696381]
[1747753032965,0.81386907,2475.1,2475.0,12.58912381]
[1747753033578,0.81386907,2475.1,2475.0,13.1086366]
[1747753034575,0.00606907,2475.1,2475.0,13.1086366]
[1747753034773,0.81386907,2475.1,2475.0,13.1086366]
[1747753035172,0.81386907,2475.1,2475.0,13.10863264]
[1747753035775,0.81386907,2475.1,2475.0,13.39695985]
[1747753036377,0.00606907,2475.1,2475.0,13.39695985]
[1747753037072,0.00606907,2475.1,2475.0,18.39695985]
[1747753037270,0.8077,2475.5,2475.4,0.80771]
[1747753037467,0.8078,2475.2,2475.1,0.80778]
[1747753037665,0.80774,2475.3,2475.2,1.296]
[1747753038072,0.80774,2475.3,2475.2,3.316]
[1747753038268,3.00654,2475.3,2475.2,8.56]
[1747753038467,3.00654,2475.3,2475.2,8.68624024]
[1747753038663,3.00654,2475.3,2475.2,10.79601024]
[1747753038882,0.80774,2475.3,2475.2,13.13920265]
[1747753039276,0.80772,2475.4,2475.3,0.80771]
[1747753039472,0.80772,2475.4,2475.3,3.17525024]
[1747753039776,0.80772,2475.4,2475.3,4.38745524]
[1747753039976,0.80772,2475.4,2475.3,3.44815524]
[1747753040175,3.01692,2475.4,2475.3,3.77134765]
[1747753040481,12.99692,2475.4,2475.3,2.65e-06]
[1747753040675,18.13192,2475.4,2475.3,2.65e-06]
[1747753041280,26.37192,2475.4,2475.3,2.65e-06]
[1747753041679,29.60288,2475.4,2474.8,1.3045]
[1747753041882,4.01567,2474.9,2474.8,1.3045]
[1747753042677,4.01567,2474.9,2474.8,2.1124]
[1747753042875,5.22717,2475.3,2474.9,0.80785]
[1747753043083,0.80783,2475.1,2475.0,2.11233]
[1747753043380,0.80783,2475.1,2475.0,1.3045]
[1747753043775,2.18383,2475.1,2475.0,1.3045]
[1747753044481,0.8079,2474.8,2474.7,0.28832721]
[1747753044883,0.8079,2474.8,2474.7,2.30873221]
[1747753045779,0.8079,2474.8,2474.7,3.62503221]
[1747753046374,2.9359,2474.8,2474.7,3.62503221]
[1747753046575,4.5559,2474.8,2474.7,7.21e-06]
[1747753046778,0.80803,2474.4,2474.3,0.57405591]
[1747753046978,4.41583,2474.4,2474.3,0.57405591]
[1747753047482,4.01583,2474.4,2474.3,0.57405591]
[1747753047686,5.37863,2474.4,2474.3,0.57405591]
[1747753048181,5.77863,2474.4,2474.3,0.57405591]
[1747753048386,0.8081,2474.2,2474.1,0.00606907]
[1747753048582,0.9305,2474.3,2474.2,0.8081]
[1747753048782,0.8638,2474.5,2474.2,1.2828]
[1747753049184,0.80806,2474.3,2474.2,1.2828]
[1747753049576,0.80806,2474.3,2474.2,3.303615]
[1747753050385,0.80806,2474.3,2474.2,4.111715]
[1747753050886,0.80806,2474.3,2474.2,3.303615]
[1747753051182,0.80806,2474.3,2474.2,4.111715]
[1747753051491,0.80806,2474.3,2474.2,3.303615]
[1747753051675,0.80806,2474.3,2474.2,2.020815]
[1747753052288,0.8081,2474.2,2474.1,0.00606907]
[1747753052489,2.1993,2474.2,2474.1,0.94048843]
[1747753052681,2.1993,2474.2,2474.1,2.96138343]
[1747753053287,0.80809,2474.3,2474.2,0.80807]
[1747753053487,0.80809,2474.3,2474.2,2.13077]
[1747753053687,0.80809,2474.3,2474.2,3.46980436]
[1747753054890,0.80809,2474.3,2474.2,3.79310187]
[1747753055592,0.80809,2474.3,2474.2,4.60120187]
[1747753056993,0.80809,2474.3,2474.2,3.79310187]
[1747753057190,2.30809,2474.3,2474.2,0.44958687]
[1747753057388,6.38809,2474.3,2474.2,0.44958687]
[1747753057793,6.38809,2474.3,2474.2,0.12628936]
[1747753058485,9.12809,2474.3,2474.2,0.12628936]
[1747753058992,14.26309,2474.3,2474.2,0.12628936]
[1747753059293,0.8081,2474.2,2474.1,0.00606907]
[1747753059496,10.9324,2474.2,2474.1,0.13237574]
[1747753060194,0.80832,2473.6,2473.4,1.71383]
[1747753060499,0.80846,2473.1,2473.0,0.99711418]
[1747753060690,10.18626,2473.1,2473.0,0.53993643]
[1747753060887,0.80862,2472.6,2472.5,1.41056153]
[1747753061089,0.80862,2472.6,2472.5,2.73856153]
[1747753061289,0.80872,2472.3,2472.2,0.9331]
[1747753061491,0.80872,2472.3,2472.2,2.2611]
[1747753061694,4.01652,2472.3,2472.2,1.328]
[1747753061992,0.80882,2472.0,2471.9,0.57599607]
[1747753062296,4.01662,2472.0,2471.9,0.57599607]
[1747753062492,6.13662,2472.0,2471.9,0.57599607]
[1747753062688,0.80894,2471.7,2471.4,2.13701]
[1747753063089,0.80898,2471.5,2471.4,1.328]
[1747753063290,0.80898,2471.5,2471.4,4.068]
[1747753063494,0.80898,2471.5,2471.4,6.091105]
[1747753063799,2.11948,2471.5,2471.4,4.068]
[1747753064000,0.80921,2470.8,2470.7,3.2078]
[1747753064296,0.00606907,2471.0,2470.7,4.5335]
[1747753064697,0.00606907,2471.0,2470.9,0.80918]
[1747753065193,0.00606907,2471.0,2470.9,5.572695]
[1747753065393,3.2078,2471.8,2470.9,18.305515]
[1747753065697,0.80899,2471.5,2471.2,0.80906]
[1747753065994,0.80899,2471.5,2471.3,1.3432]
[1747753066193,1.3105,2471.7,2471.3,1.3432]
[1747753066390,0.81499907,2471.7,2471.4,4.0168]
[1747753066584,0.00606907,2471.7,2471.5,2.15217]
[1747753066789,0.00606907,2471.7,2471.6,0.80895]
[1747753067397,3.87336867,2472.5,2472.2,0.80875]
[1747753067597,0.80869,2472.4,2472.3,1.3432]
[1747753067987,0.80869,2472.4,2472.3,3.36556499]
[1747753068200,0.80869,2472.4,2472.3,1.3432]
[1747753070398,0.80875,2472.2,2472.1,0.00606907]
[1747753070997,2.16555,2472.2,2472.1,0.00606907]
[1747753071896,0.80874,2472.3,2472.1,2.83737907]
[1747753072193,2.19517,2472.5,2472.3,0.80872]
[1747753072391,2.19517,2472.5,2472.4,1.316]
[1747753072589,1.3865,2472.5,2472.4,1.316]
[1747753072791,0.00606907,2472.6,2472.4,3.338285]
[1747753072991,0.81468907,2472.6,2472.4,2.12467]
[1747753073196,0.00606907,2472.6,2472.4,1.316]
[1747753073495,0.00606907,2472.6,2472.5,0.80865]
[1747753073892,0.00606907,2472.6,2472.5,2.830855]
[1747753074095,0.00606907,2472.6,2472.5,7.753455]
[1747753074287,0.81468907,2472.6,2472.5,6.20457364]
[1747753074495,0.00606907,2472.6,2472.5,7.01322364]
[1747753075300,0.00606907,2472.6,2472.5,3.46457364]
[1747753075494,0.00606907,2472.6,2472.5,4.27322364]
[1747753076096,0.81468907,2472.6,2472.5,6.20457364]
[1747753077200,0.81468907,2472.6,2472.5,3.46457364]
[1747753077403,0.81468907,2472.6,2472.5,4.27322364]
[1747753077699,0.81468907,2472.6,2472.5,3.46457364]
[1747753077896,0.81468907,2472.6,2472.5,0.12636864]
[1747753078293,0.81468907,2472.6,2472.5,2.95722364]
[1747753078900,0.00606907,2472.6,2472.5,4.32632364]
[1747753079096,0.00606907,2472.6,2472.5,7.06632364]
[1747753079804,0.81468907,2472.6,2472.5,2.86636864]
[1747753079996,5.42468907,2472.6,2472.5,2.86636864]
[1747753080201,7.39468907,2472.6,2472.5,0.12636864]
[1747753080501,7.39468907,2472.6,2472.3,0.08486477]
[1747753080502,0.80869,2472.4,2472.3,0.08486477]
[1747753080895,0.80872,2472.3,2472.2,2.17785]
[1747753081097,1.40826907,2472.6,2472.2,10.04148768]
[1747753081398,0.8087,2472.4,2472.3,2.18941]
[1747753081597,0.8087,2472.4,2472.3,2.31579768]
[1747753081895,0.8087,2472.4,2472.3,4.33816267]
[1747753082097,0.8087,2472.4,2472.3,7.07816267]
[1747753082300,0.8087,2472.4,2472.3,7.99856267]
[1747753083498,0.00606907,2472.6,2472.3,7.99856267]
[1747753083707,0.81470907,2472.6,2472.5,0.80865]
[1747753084002,0.81470907,2472.6,2472.5,2.29133768]
[1747753084194,0.81470907,2472.6,2472.5,7.05354268]
[1747753084396,0.00606907,2472.6,2472.5,7.05354268]
[1747753084994,0.81468907,2472.6,2472.5,12.05354268]
[1747753085799,0.00606907,2472.6,2472.5,12.05354268]
[1747753086005,0.81468907,2472.6,2472.5,12.05354268]
[1747753086196,0.81468907,2472.6,2472.5,12.76868768]
[1747753086594,4.02248907,2472.6,2472.5,2.86638768]
[1747753087101,4.02248907,2472.6,2472.5,0.12638768]
[1747753087503,4.39248907,2472.6,2472.5,0.12638768]
[1747753087700,0.80875,2472.2,2472.1,0.21972948]
[1747753087897,4.01655,2472.2,2472.1,0.21972948]
[1747753088108,6.38655,2472.2,2472.1,0.00606907]
[1747753088605,0.80885,2471.9,2471.8,0.21366041]
[1747753088907,2.88885,2471.9,2471.8,0.21366041]
[1747753089507,6.09665,2471.9,2471.8,0.21366041]
[1747753090102,7.30994,2471.9,2471.6,1.29666907]
[1747753090296,0.80892,2471.7,2471.6,1.29666907]
[1747753090496,2.82892,2471.7,2471.6,0.00606907]
[1747753090800,4.16042,2471.7,2471.6,0.00606907]
[1747753091702,9.29542,2471.7,2471.6,0.00606907]
[1747753091999,9.29542,2471.7,2471.1,1.30879442]
[1747753092000,0.80908,2471.2,2471.1,0.21366041]
[1747753092699,2.14055,2471.4,2471.1,2.2370104]
[1747753092903,1.3315,2471.4,2471.2,1.2942]
[1747753093105,0.80905,2471.3,2471.2,1.2942]
[1747753093402,0.80905,2471.3,2471.2,1.61788686]
[1747753093708,0.80905,2471.3,2471.2,0.32368686]
[1747753095111,0.80908,2471.2,2471.1,1.3555]
[1747753096005,0.80908,2471.2,2471.1,1.44036477]
[1747753096406,4.01688,2471.2,2471.1,1.44036477]
[1747753096608,4.01688,2471.2,2471.1,0.40856315]
[1747753097107,4.01688,2471.2,2471.1,0.32369838]
[1747753097705,5.42248,2471.2,2471.1,0.32369838]
[1747753098405,0.80915,2471.0,2470.9,8.533]
[1747753099110,0.80922,2470.8,2470.7,4.5906]
[1747753099309,4.01702,2470.8,2470.7,1.3828]
[1747753099707,5.35442,2470.8,2470.7,1.3828]
[1747753099905,5.35442,2470.8,2470.5,8.81947815]
[1747753099906,0.80928,2470.6,2470.5,8.74766041]
[1747753100306,0.80928,2470.6,2470.5,11.61414654]
[1747753100600,0.80928,2470.6,2470.5,3.08014654]
[1747753100804,0.80928,2470.6,2470.5,5.91329654]
[1747753101005,0.80928,2470.6,2470.5,5.10398654]
[1747753101616,0.80928,2470.6,2470.5,7.22529654]
[1747753101805,0.80928,2470.6,2470.5,6.41598654]
[1747753102001,0.80928,2470.6,2470.5,6.20232613]
[1747753102214,0.80928,2470.6,2470.5,1.43848613]
[1747753103213,0.80928,2470.6,2470.5,4.17848613]
[1747753104116,0.80928,2470.6,2470.5,1.43848613]
[1747753106914,0.80928,2470.6,2470.5,4.27164613]
[1747753107815,0.80928,2470.7,2470.6,0.80925]
[1747753108014,0.80928,2470.7,2470.6,10.28015]
[1747753108216,0.80924,2470.8,2470.7,0.8092]
[1747753108508,0.80924,2470.8,2470.7,3.0132]
[1747753108708,0.80919,2471.0,2470.9,0.80914]
[1747753109213,0.80919,2471.0,2470.9,2.832655]
[1747753109420,2.02878907,2471.2,2471.0,0.80912]
[1747753109421,0.80914,2471.1,2471.0,0.80912]
[1747753109614,0.00606907,2471.2,2471.1,0.80912]
[1747753109825,0.00606907,2471.2,2471.1,1.86860613]
[1747753110020,0.00606907,2471.2,2471.1,12.42895612]
[1747753111018,0.00606907,2471.2,2471.1,17.42895612]
[1747753111218,0.81515907,2471.2,2471.1,7.09975612]
[1747753111527,0.81515907,2471.2,2471.1,11.61883612]
[1747753111823,0.81515907,2471.2,2471.1,10.40460613]
[1747753112020,0.81515907,2471.2,2471.1,10.68583612]
[1747753112220,0.81515907,2471.2,2471.1,0.45015991]
[1747753112826,2.11795907,2471.2,2471.1,0.45015991]
[1747753113826,2.11795907,2471.2,2471.1,0.12648613]
[1747753114129,5.32575907,2471.2,2471.1,0.12648613]
[1747753115326,8.06575907,2471.2,2471.1,0.12648613]
[1747753118126,10.04575907,2471.2,2471.1,0.12648613]
[1747753118326,8.06575907,2471.2,2471.1,0.12648613]
[1747753118517,8.45575907,2471.2,2471.1,0.12648613]
[1747753118820,0.80925,2470.7,2470.6,0.21366041]
[1747753119127,0.80951,2469.9,2469.8,0.71340571]
[1747753119826,4.41071,2469.9,2469.8,0.71340571]
[1747753120026,4.37071,2469.9,2469.8,0.71340571]
[1747753120228,4.26071,2469.9,2469.8,0.71340571]
[1747753120729,4.25342798,2469.9,2469.8,0.71340571]
[1747753120927,4.25342798,2469.9,2469.3,1.3261]
[1747753120928,0.80968,2469.4,2469.3,4.5339]
[1747753121430,0.80968,2469.4,2469.3,6.558725]
[1747753122135,0.80968,2469.4,2469.3,3.350925]
[1747753122630,0.80968,2469.4,2469.3,1.6500389]
[1747753122832,0.80968,2469.4,2469.3,3.6748639]
[1747753123526,0.80968,2469.4,2469.3,4.4845739]
[1747753123725,0.00606907,2469.6,2469.5,0.80964]
[1747753123927,0.00606907,2469.6,2469.5,9.33564]
[1747753124126,0.00606907,2469.6,2469.5,14.1003]
[1747753124536,0.00606907,2469.6,2469.5,15.4393]
[1747753124926,0.81567907,2469.6,2469.5,15.4393]
[1747753125531,0.81567907,2469.6,2469.5,14.62966]
[1747753125836,0.00606907,2469.6,2469.5,15.76319029]
[1747753126135,0.00606907,2469.6,2469.5,15.76419029]
[1747753127838,0.00606907,2469.6,2469.5,7.23719029]
[1747753128032,0.00606907,2469.6,2469.5,15.76419029]
[1747753128333,0.81567907,2469.6,2469.5,15.76419029]
[1747753128631,0.81567907,2469.6,2469.5,15.4403]
[1747753128828,0.81567907,2469.6,2469.5,6.9133]
[1747753129035,0.81567907,2469.6,2469.5,15.76418182]
[1747753129333,0.81567907,2469.6,2469.5,4.49718182]
[1747753129531,0.81567907,2469.6,2469.5,12.21454182]
[1747753129924,0.81567907,2469.6,2469.5,13.02418182]
[1747753130140,0.81567907,2469.6,2469.5,12.21454182]
[1747753130329,0.00606907,2469.6,2469.5,13.02418182]
[1747753130530,0.81567907,2469.6,2469.5,4.49718182]
[1747753130827,0.81567907,2469.6,2469.5,13.02418182]
[1747753131033,0.81567907,2469.6,2469.5,12.21454182]
[1747753131224,0.81567907,2469.6,2469.5,12.34106433]
[1747753131428,0.81567907,2469.6,2469.5,3.81406433]
[1747753131832,0.81567907,2469.6,2469.5,12.34106433]
[1747753132741,0.81567907,2469.6,2469.5,12.01718251]
[1747753133034,0.00606907,2469.6,2469.5,12.82682251]
[1747753133229,0.00606907,2469.6,2469.5,15.56682251]
[1747753134137,0.81567907,2469.6,2469.5,12.82682251]
[1747753134434,0.00606907,2469.6,2469.5,12.82682251]
[1747753135136,0.00606907,2469.6,2469.5,7.03982251]
[1747753135340,0.00606907,2469.6,2469.5,15.56782251]
[1747753136141,0.00606907,2469.6,2469.5,12.82782251]
[1747753136340,0.00606907,2469.6,2469.5,4.29982251]
[1747753136541,0.00606907,2469.6,2469.5,12.82782251]
[1747753137240,0.00606907,2469.6,2469.5,15.56782251]
[1747753138132,0.00606907,2469.6,2469.5,15.8917077]
[1747753139046,0.00606907,2469.6,2469.5,7.3637077]
[1747753139236,0.00606907,2469.6,2469.5,13.1517077]
[1747753141646,9.07e-06,2469.6,2469.5,18.1517077]
[1747753142137,0.80939,2470.4,2470.3,0.80935]
[1747753142445,0.80939,2470.4,2470.3,0.93587251]
[1747753143246,2.18549,2470.4,2470.3,0.93587251]
[1747753143746,0.80939,2470.4,2470.3,0.93587251]
[1747753143951,2.18549,2470.4,2470.3,0.12652251]
[1747753144140,2.18549,2470.4,2470.3,0.93590251]
[1747753144448,2.18549,2470.4,2470.3,0.12652251]
[1747753145336,4.20549,2470.4,2470.3,0.12652251]
[1747753145542,9.53549,2470.4,2470.3,0.12652251]
[1747753146048,0.80941,2470.2,2470.1,0.00606907]
[1747753146244,9.55721,2470.2,2470.1,0.00606907]
[1747753147350,14.55721,2470.2,2470.1,0.00606907]
[1747753147548,15.94871,2470.2,2470.1,0.00606907]
[1747753147947,10.94871,2470.2,2470.1,0.00606907]
[1747753150446,0.8486,2470.3,2470.1,0.00606907]
[1747753150650,2.78630867,2470.5,2470.4,0.80935]
[1747753151243,0.66556867,2470.5,2470.4,2.09185]
[1747753151442,1.47487867,2470.5,2470.4,2.09185]
[1747753151753,1.47487867,2470.5,2470.4,4.11577499]
[1747753152045,1.47487867,2470.5,2470.4,4.43955161]
[1747753152549,0.66556867,2470.5,2470.4,4.43955161]
[1747753152947,1.47487867,2470.5,2470.4,4.43955161]
[1747753153350,2.80147867,2470.5,2470.4,4.43955161]
[1747753154043,0.66556867,2470.5,2470.4,4.43955161]
[1747753154552,1.47487867,2470.5,2470.4,12.95255161]
[1747753155151,2.12995907,2470.6,2470.5,0.80931]
[1747753155450,2.12995907,2470.6,2470.5,2.15711]
[1747753155649,1.32066907,2470.6,2470.5,4.18095]
[1747753155855,0.00606907,2470.6,2470.5,4.18095]
[1747753156057,2.12375,2471.0,2470.9,0.80918]
[1747753156249,1.3146,2471.0,2470.9,0.80918]
[1747753156554,1.3146,2471.0,2470.8,10.66899]
[1747753156856,0.80918,2470.9,2470.8,10.66899]
[1747753157146,0.80918,2470.9,2470.8,0.80919]
[1747753157351,2.12378,2471.0,2470.9,0.80918]
[1747753157745,1.3146,2471.0,2470.9,0.80918]
[1747753158147,0.81520907,2471.1,2471.0,0.80915]
[1747753158853,2.10430907,2471.1,2471.0,8.63845131]
[1747753159552,2.10430907,2471.1,2471.0,0.12645131]
[1747753160251,4.84430907,2471.1,2471.0,0.12645131]
[1747753161146,7.50430907,2471.1,2471.0,0.12645131]
[1747753161649,4.84430907,2471.1,2471.0,0.12645131]
[1747753162152,4.84430907,2471.1,2471.0,0.93560131]
[1747753162153,2.74606907,2471.1,2471.0,0.93560131]
[1747753162366,2.74606907,2471.1,2471.0,2.31350131]
[1747753162653,3.55518907,2471.1,2471.0,8.63745131]
[1747753162852,4.94568907,2471.1,2471.0,9.44660131]
[1747753163253,2.20568907,2471.1,2471.0,9.44660131]
[1747753164151,0.00606907,2471.1,2471.0,9.44660131]
[1747753164357,0.00606907,2471.1,2471.0,11.47003131]
[1747753164759,0.00606907,2471.1,2471.0,12.82433131]
[1747753165659,0.00606907,2471.1,2471.0,13.14799625]
[1747753166760,0.00606907,2471.1,2471.0,18.14799625]
[1747753169264,0.00606907,2471.1,2471.0,20.88799625]
[1747753170460,0.00606907,2471.1,2471.0,7.37699625]
[1747753170662,0.00606907,2471.1,2471.0,16.17601141]
[1747753171262,0.00606907,2471.1,2471.0,13.43601141]
[1747753172167,0.81518907,2471.1,2471.0,13.14699625]
[1747753172558,0.81518907,2471.1,2471.0,3.82784625]
[1747753172864,0.81518907,2471.1,2471.0,13.14599625]
[1747753173069,0.81518907,2471.1,2471.0,11.12256625]
[1747753173565,2.13058907,2471.1,2471.0,11.12256625]
[1747753174567,0.81518907,2471.1,2471.0,11.12256625]
[1747753176159,0.81518907,2471.1,2471.0,13.14599625]
[1747753176961,0.00606907,2471.1,2471.0,13.14599625]
[1747753178471,0.81518907,2471.1,2471.0,13.14599625]
[1747753179675,0.81518907,2471.1,2471.0,4.63699625]
[1747753179872,0.81518907,2471.1,2471.0,13.12999625]
[1747753181073,0.81518907,2471.1,2471.0,4.63699625]
[1747753181281,0.81518907,2471.1,2471.0,13.12999625]
[1747753183079,0.81518907,2471.1,2471.0,13.34619296]
[1747753183685,0.81518907,2471.1,2471.0,9.96846296]
[1747753183982,0.81518907,2471.1,2471.0,9.15931296]
[1747753183983,4.02298907,2471.1,2471.0,9.15931296]
[1747753184175,4.06298907,2471.1,2471.0,9.15931296]
[1747753184585,4.04581,2471.0,2470.2,0.71340571]
[1747753184787,4.01708,2470.6,2470.2,1.52281571]
[1747753184995,6.36708,2470.6,2470.2,0.71340571]
[1747753185182,9.10708,2470.6,2470.2,0.71340571]
[1747753185682,14.10708,2470.6,2470.2,0.71340571]
[1747753185888,2.02332,2470.5,2470.1,0.00606907]
[1747753186187,4.01721,2470.2,2470.1,0.00606907]
[1747753186388,4.07721,2470.2,2470.1,0.00606907]
[1747753187189,6.81721,2470.2,2470.1,0.00606907]
[1747753187895,11.0078,2470.2,2469.5,0.80963]
[1747753188194,0.80964,2469.5,2469.4,12.51145]
[1747753188385,0.80963,2469.6,2469.5,0.80963]
[1747753188581,0.80964,2469.5,2469.4,13.0195]
[1747753188786,0.80964,2469.5,2469.4,13.82917]
[1747753188992,0.80964,2469.5,2469.4,15.85391]
[1747753189287,0.80964,2469.5,2469.4,11.83644]
[1747753189688,0.80964,2469.5,2469.4,9.8117]
[1747753189888,0.80964,2469.5,2469.4,11.83644]
[1747753190093,0.80964,2469.5,2469.4,8.494]
[1747753190490,2.11074,2469.5,2469.4,8.494]
[1747753190691,0.80971,2469.3,2469.2,1.32376907]
[1747753190993,0.8097,2469.4,2469.2,1.32376907]
[1747753191198,0.80971,2469.3,2469.2,0.00606907]
[1747753191397,1.73111,2469.3,2469.2,0.00606907]
[1747753192798,4.93891,2469.3,2469.2,0.00606907]
[1747753193791,5.31891,2469.3,2469.2,0.00606907]
[1747753193992,4.93891,2469.3,2469.2,0.00606907]
[1747753194498,1.73111,2469.3,2469.2,0.00606907]
[1747753194686,1.73111,2469.3,2469.2,0.81580907]
[1747753195390,1.73111,2469.3,2469.2,2.84071407]
[1747753195592,1.3011,2469.5,2469.2,2.03097407]
[1747753195796,2.11076,2469.5,2469.4,0.80967]
[1747753196091,0.80964,2469.5,2469.4,3.54967]
[1747753196292,0.80963,2469.6,2469.5,0.80961]
[1747753196494,3.01556907,2469.7,2469.6,0.80961]
[1747753196693,0.00606907,2469.7,2469.6,9.43313047]
[1747753196894,0.00606907,2469.7,2469.6,11.45771047]
[1747753197298,0.00606907,2469.7,2469.6,12.38441047]
[1747753198296,0.35606907,2469.7,2469.2,3.21386907]
[1747753198497,3.2078,2469.3,2469.2,0.00606907]
[1747753198701,0.8097,2469.4,2469.2,0.81579907]
[1747753198899,3.2078,2469.6,2469.2,0.00606907]
[1747753199101,0.80966,2469.5,2469.3,0.80969]
[1747753199391,4.4856,2469.6,2469.3,0.80969]
[1747753199591,0.80971,2469.3,2469.2,0.00606907]
[1747753199792,0.80971,2469.3,2469.2,10.52797407]
[1747753200406,4.43751,2469.3,2469.2,0.00606907]